[Event "*** Biggest EVER Titled Tuesday"]
[Site "Chess.com"]
[Date "2018.04.17"]
[Round "6"]
[White "pedromartinez91"]
[Black "Rokis13"]
[Result "0-1"]
[WhiteElo "2399"]
[BlackElo "2431"]
[TimeControl "180+2"]
[EndTime "14:21:57 PDT"]
[Termination "Rokis13 won on time"]

1. d4 {[%clk 0:03:01.9]} 1... d6 {[%clk 0:02:58.7]} 2. c4 {[%clk 0:02:59.3]}
2... e5 {[%clk 0:02:58.3]} 3. Nc3 {[%clk 0:02:51.3]} 3... Nc6 {[%clk 0:02:58.9]}
4. Nf3 {[%clk 0:02:00.6]} 4... Bg4 {[%clk 0:02:55.4]} 5. d5 {[%clk 0:01:58.2]}
5... Nce7 {[%clk 0:02:48.8]} 6. e4 {[%clk 0:01:54.2]} 6... Ng6 {[%clk
0:02:49.7]} 7. h3 {[%clk 0:01:54.1]} 7... Bd7 {[%clk 0:02:50.3]} 8. g3 {[%clk
0:01:51.3]} 8... Qc8 {[%clk 0:02:50.4]} 9. Bg2 {[%clk 0:01:51.7]} 9... Nf6
{[%clk 0:02:50.8]} 10. Nd2 {[%clk 0:01:49.6]} 10... Be7 {[%clk 0:02:50.8]} 11.
Nf1 {[%clk 0:01:48.2]} 11... h5 {[%clk 0:02:50.8]} 12. h4 {[%clk 0:01:46.6]}
12... a6 {[%clk 0:02:51.2]} 13. Ne3 {[%clk 0:01:47]} 13... c6 {[%clk 0:02:46.9]}
14. Bd2 {[%clk 0:01:46.8]} 14... Ng4 {[%clk 0:02:41]} 15. Nxg4 {[%clk
0:01:44.5]} 15... Bxg4 {[%clk 0:02:41.9]} 16. f3 {[%clk 0:01:43.8]} 16... Bd7
{[%clk 0:02:42.6]} 17. Qb3 {[%clk 0:01:39.6]} 17... Rb8 {[%clk 0:02:40.5]} 18.
O-O-O {[%clk 0:01:38.3]} 18... c5 {[%clk 0:02:41.5]} 19. f4 {[%clk 0:01:29.5]}
19... b5 {[%clk 0:02:41.3]} 20. f5 {[%clk 0:01:30.1]} 20... Nf8 {[%clk
0:02:42.3]} 21. Bf3 {[%clk 0:01:24.4]} 21... Qc7 {[%clk 0:02:24.7]} 22. Be2
{[%clk 0:01:11.1]} 22... b4 {[%clk 0:02:24.2]} 23. Nb1 {[%clk 0:01:07.5]} 23...
a5 {[%clk 0:02:24.1]} 24. Qc2 {[%clk 0:01:05.9]} 24... a4 {[%clk 0:02:24.6]} 25.
Qd3 {[%clk 0:01:06.6]} 25... Bf6 {[%clk 0:02:13.9]} 26. Bf3 {[%clk 0:01:05.7]}
26... Bc8 {[%clk 0:02:14.3]} 27. Qe2 {[%clk 0:01:06.2]} 27... Ba6 {[%clk
0:02:15.3]} 28. Bxh5 {[%clk 0:01:04.4]} 28... Rxh5 {[%clk 0:02:11.3]} 29. Qxh5
{[%clk 0:01:00.9]} 29... Bxc4 {[%clk 0:02:12.3]} 30. g4 {[%clk 0:00:36.5]} 30...
Bxa2 {[%clk 0:02:13.2]} 31. g5 {[%clk 0:00:36.3]} 31... Bd8 {[%clk 0:02:06.2]}
32. g6 {[%clk 0:00:34.4]} 32... f6 {[%clk 0:02:05.6]} 33. Qe2 {[%clk 0:00:35]}
33... c4 {[%clk 0:02:04.9]} 34. h5 {[%clk 0:00:30.5]} 34... c3 {[%clk
0:02:03.5]} 35. bxc3 {[%clk 0:00:30.3]} 35... Bxb1 {[%clk 0:02:01.3]} 36. Kxb1
{[%clk 0:00:30.8]} 36... bxc3+ {[%clk 0:02:02.2]} 37. Ka1 {[%clk 0:00:32]} 37...
Qc5 {[%clk 0:01:49.4]} 38. Bc1 {[%clk 0:00:31]} 38... c2 {[%clk 0:01:40.7]} 39.
Bb2 {[%clk 0:00:31.4]} 39... a3 {[%clk 0:01:37.7]} 0-1

[Event "*** Biggest EVER Titled Tuesday"]
[Site "Chess.com"]
[Date "2018.04.17"]
[Round "6"]
[White "Vamostodorecto"]
[Black "Manukyan_Artak"]
[Result "0-1"]
[WhiteElo "2361"]
[BlackElo "2357"]
[TimeControl "180+2"]
[EndTime "14:21:59 PDT"]
[Termination "Manukyan_Artak won by checkmate"]

1. d4 {[%clk 0:03:01.9]} 1... d6 {[%clk 0:03:00.5]} 2. c4 {[%clk 0:03:01.5]}
2... g6 {[%clk 0:03:00.4]} 3. e4 {[%clk 0:03:02]} 3... Bg7 {[%clk 0:03:01.7]} 4.
Nc3 {[%clk 0:03:02.8]} 4... e5 {[%clk 0:03:02.9]} 5. Nf3 {[%clk 0:03:01.8]} 5...
exd4 {[%clk 0:03:00.2]} 6. Nxd4 {[%clk 0:03:02.5]} 6... Ne7 {[%clk 0:03:01.5]}
7. Be3 {[%clk 0:03:01.4]} 7... Nbc6 {[%clk 0:03:01.3]} 8. Qd2 {[%clk 0:02:59.4]}
8... O-O {[%clk 0:03:01.7]} 9. Be2 {[%clk 0:02:59.4]} 9... Nxd4 {[%clk
0:02:57.7]} 10. Bxd4 {[%clk 0:03:00.3]} 10... Bxd4 {[%clk 0:02:58.3]} 11. Qxd4
{[%clk 0:03:01.2]} 11... Nc6 {[%clk 0:03:00.2]} 12. Qd2 {[%clk 0:02:59.3]} 12...
Be6 {[%clk 0:02:59.4]} 13. h4 {[%clk 0:02:58.7]} 13... Qf6 {[%clk 0:02:51.9]}
14. h5 {[%clk 0:02:55.9]} 14... Qd4 {[%clk 0:02:52.2]} 15. Qh6 {[%clk
0:02:46.8]} 15... Qg7 {[%clk 0:02:52.6]} 16. hxg6 {[%clk 0:02:43.6]} 16... hxg6
{[%clk 0:02:41.4]} 17. Qh4 {[%clk 0:02:22.3]} 17... Nd4 {[%clk 0:02:35.3]} 18.
Bd3 {[%clk 0:01:57.9]} 18... c6 {[%clk 0:02:16.3]} 19. Rh2 {[%clk 0:01:56]}
19... b5 {[%clk 0:02:09.8]} 20. cxb5 {[%clk 0:01:49.4]} 20... cxb5 {[%clk
0:02:10.8]} 21. Kd2 {[%clk 0:01:38.8]} 21... b4 {[%clk 0:02:04.9]} 22. Rah1
{[%clk 0:00:31.9]} 22... bxc3+ {[%clk 0:01:49]} 23. bxc3 {[%clk 0:00:33.8]}
23... Nc6 {[%clk 0:01:19]} 24. Qf4 {[%clk 0:00:33.9]} 24... Ne5 {[%clk
0:01:07.7]} 25. Rh6 {[%clk 0:00:21.4]} 25... Rfc8 {[%clk 0:01:05.2]} 26. Qh2
{[%clk 0:00:18.7]} 26... Kf8 {[%clk 0:01:02.6]} 27. Qh4 {[%clk 0:00:17.1]} 27...
g5 {[%clk 0:00:59.8]} 28. Qh5 {[%clk 0:00:14.2]} 28... Ke7 {[%clk 0:00:58.3]}
29. Rh7 {[%clk 0:00:14.2]} 29... Qf6 {[%clk 0:00:55.4]} 30. f3 {[%clk
0:00:13.5]} 30... Nxd3 {[%clk 0:00:56.3]} 31. Kxd3 {[%clk 0:00:14]} 31... Rxc3+
{[%clk 0:00:57.4]} 32. Kd2 {[%clk 0:00:13.9]} 32... Rac8 {[%clk 0:00:57.8]} 33.
Rh6 {[%clk 0:00:12.5]} 33... Rc2+ {[%clk 0:00:58.3]} 34. Kd1 {[%clk 0:00:11.9]}
34... Qa1# {[%clk 0:00:58.9]} 0-1

[Event "*** Biggest EVER Titled Tuesday"]
[Site "Chess.com"]
[Date "2018.04.17"]
[Round "6"]
[White "Mimsychess"]
[Black "grzechu96"]
[Result "0-1"]
[WhiteElo "2307"]
[BlackElo "2461"]
[TimeControl "180+2"]
[EndTime "14:22:00 PDT"]
[Termination "grzechu96 won on time"]

1. e4 {[%clk 0:03:01.9]} 1... c5 {[%clk 0:03:00.8]} 2. Nf3 {[%clk 0:03:01.9]}
2... d6 {[%clk 0:03:02.1]} 3. Bb5+ {[%clk 0:02:59.3]} 3... Nd7 {[%clk
0:03:02.4]} 4. O-O {[%clk 0:02:58.2]} 4... a6 {[%clk 0:03:02.5]} 5. Bd3 {[%clk
0:02:59.2]} 5... Ngf6 {[%clk 0:03:01.7]} 6. Re1 {[%clk 0:02:57.6]} 6... e6
{[%clk 0:03:01.2]} 7. c3 {[%clk 0:02:55.7]} 7... b5 {[%clk 0:03:01.6]} 8. a4
{[%clk 0:02:52.9]} 8... c4 {[%clk 0:02:56.3]} 9. Bc2 {[%clk 0:02:53.7]} 9... Bb7
{[%clk 0:02:57.7]} 10. axb5 {[%clk 0:02:47]} 10... axb5 {[%clk 0:02:58.7]} 11.
Rxa8 {[%clk 0:02:47.8]} 11... Qxa8 {[%clk 0:03:00]} 12. Na3 {[%clk 0:02:48.9]}
12... Bc6 {[%clk 0:02:51.7]} 13. Nd4 {[%clk 0:02:47.2]} 13... Bxe4 {[%clk
0:02:44.2]} 14. Bxe4 {[%clk 0:02:06.8]} 14... Nxe4 {[%clk 0:02:46.1]} 15. Ndxb5
{[%clk 0:01:55.4]} 15... Qb7 {[%clk 0:02:27.6]} 16. Qf3 {[%clk 0:01:41.9]} 16...
d5 {[%clk 0:01:58]} 17. d3 {[%clk 0:01:35.1]} 17... Ne5 {[%clk 0:01:55.5]} 18.
Qd1 {[%clk 0:01:21.3]} 18... Nxd3 {[%clk 0:01:56.1]} 19. Qa4 {[%clk 0:01:22.1]}
19... Qc6 {[%clk 0:00:36.8]} 20. Rxe4 {[%clk 0:00:30.4]} 20... dxe4 {[%clk
0:00:36.3]} 21. Nxc4 {[%clk 0:00:23.4]} 21... Bc5 {[%clk 0:00:29.4]} 22. Nbd6+
{[%clk 0:00:14.9]} 22... Kd7 {[%clk 0:00:30.2]} 23. Nb5 {[%clk 0:00:05.5]} 23...
Rb8 {[%clk 0:00:24.8]} 0-1

[Event "*** Biggest EVER Titled Tuesday"]
[Site "Chess.com"]
[Date "2018.04.17"]
[Round "6"]
[White "LyonBeast"]
[Black "KenanGarayev"]
[Result "1-0"]
[WhiteElo "2842"]
[BlackElo "2565"]
[TimeControl "180+2"]
[EndTime "14:22:01 PDT"]
[Termination "LyonBeast won by resignation"]

1. e4 {[%clk 0:03:01.9]} 1... e6 {[%clk 0:03:00.1]} 2. d4 {[%clk 0:03:02.2]}
2... d5 {[%clk 0:03:00.6]} 3. Nc3 {[%clk 0:03:03]} 3... Nf6 {[%clk 0:02:59.7]}
4. e5 {[%clk 0:03:03.7]} 4... Nfd7 {[%clk 0:03:00.4]} 5. f4 {[%clk 0:03:05.2]}
5... c5 {[%clk 0:02:59.9]} 6. Nf3 {[%clk 0:03:06.2]} 6... Nc6 {[%clk 0:03:01.3]}
7. Be3 {[%clk 0:03:07]} 7... a6 {[%clk 0:02:59.1]} 8. Ne2 {[%clk 0:03:04.7]}
8... b5 {[%clk 0:02:51.5]} 9. c3 {[%clk 0:03:05]} 9... c4 {[%clk 0:02:52.7]} 10.
g4 {[%clk 0:03:02.9]} 10... Nb6 {[%clk 0:02:54]} 11. Ng3 {[%clk 0:03:02.4]}
11... b4 {[%clk 0:02:55.3]} 12. Bh3 {[%clk 0:02:53.1]} 12... Be7 {[%clk
0:02:56.2]} 13. f5 {[%clk 0:02:53]} 13... exf5 {[%clk 0:02:52.7]} 14. gxf5
{[%clk 0:02:53.1]} 14... bxc3 {[%clk 0:02:46.7]} 15. bxc3 {[%clk 0:02:53.4]}
15... O-O {[%clk 0:02:45.5]} 16. Rb1 {[%clk 0:02:34.5]} 16... f6 {[%clk
0:02:36.3]} 17. O-O {[%clk 0:02:25.2]} 17... Ra7 {[%clk 0:02:24.9]} 18. Qc2
{[%clk 0:02:23.5]} 18... Rb7 {[%clk 0:02:16.1]} 19. Kh1 {[%clk 0:02:18.2]} 19...
Na7 {[%clk 0:02:10.2]} 20. Nh5 {[%clk 0:02:05]} 20... Qe8 {[%clk 0:02:07.8]} 21.
Nf4 {[%clk 0:01:57.6]} 21... Nb5 {[%clk 0:02:03.7]} 22. Rg1 {[%clk 0:01:58.3]}
22... Kh8 {[%clk 0:01:59.9]} 23. a4 {[%clk 0:01:49.8]} 23... Nxa4 {[%clk
0:01:52.2]} 24. Qxa4 {[%clk 0:01:44.1]} 24... Nxc3 {[%clk 0:01:52.1]} 25. Qxe8
{[%clk 0:01:44]} 25... Rxe8 {[%clk 0:01:54]} 26. Rbc1 {[%clk 0:01:31.5]} 26...
Rb3 {[%clk 0:01:51.6]} 27. Nd2 {[%clk 0:01:27.3]} 27... Ra3 {[%clk 0:01:50.9]}
28. Bf2 {[%clk 0:01:07.1]} 28... a5 {[%clk 0:01:35.7]} 29. Rg3 {[%clk
0:01:00.7]} 29... Bb4 {[%clk 0:01:29.6]} 30. e6 {[%clk 0:00:55.8]} 30... a4
{[%clk 0:01:25.6]} 31. Bg2 {[%clk 0:00:49.3]} 31... Ra2 {[%clk 0:01:19.7]} 32.
Be1 {[%clk 0:00:46.6]} 32... Bd6 {[%clk 0:01:14.5]} 33. Rgxc3 {[%clk 0:00:40.4]}
33... Bxf4 {[%clk 0:01:15.5]} 34. R3c2 {[%clk 0:00:35.2]} 34... Rxc2 {[%clk
0:01:11.5]} 35. Rxc2 {[%clk 0:00:37.1]} 35... g6 {[%clk 0:01:13.2]} 36. Bxd5
{[%clk 0:00:37.4]} 36... gxf5 {[%clk 0:01:03.3]} 37. Nxc4 {[%clk 0:00:38]} 37...
Bxe6 {[%clk 0:00:58.8]} 38. Bxe6 {[%clk 0:00:39.9]} 38... Rxe6 {[%clk
0:01:00.5]} 39. Bc3 {[%clk 0:00:38]} 1-0

[Event "*** Biggest EVER Titled Tuesday"]
[Site "Chess.com"]
[Date "2018.04.17"]
[Round "6"]
[White "hblanco"]
[Black "RojonR"]
[Result "0-1"]
[WhiteElo "2310"]
[BlackElo "2402"]
[TimeControl "180+2"]
[EndTime "14:22:03 PDT"]
[Termination "RojonR won by resignation"]

1. e4 {[%clk 0:03:01.9]} 1... c5 {[%clk 0:02:59.2]} 2. Nc3 {[%clk 0:03:02.6]}
2... Nc6 {[%clk 0:02:57.7]} 3. f4 {[%clk 0:03:03]} 3... d6 {[%clk 0:02:55.4]} 4.
Nf3 {[%clk 0:03:03.8]} 4... g6 {[%clk 0:02:55.4]} 5. Bb5 {[%clk 0:03:05]} 5...
Bg7 {[%clk 0:02:55.2]} 6. O-O {[%clk 0:03:06]} 6... Bd7 {[%clk 0:02:46.1]} 7.
Bxc6 {[%clk 0:03:00.4]} 7... Bxc6 {[%clk 0:02:36.1]} 8. d3 {[%clk 0:03:01.5]}
8... b5 {[%clk 0:02:16.1]} 9. Be3 {[%clk 0:02:53.7]} 9... b4 {[%clk 0:02:10.5]}
10. Ne2 {[%clk 0:02:47.3]} 10... Bxb2 {[%clk 0:02:07.8]} 11. e5 {[%clk
0:02:11.8]} 11... Bxa1 {[%clk 0:01:46.7]} 12. Qxa1 {[%clk 0:02:13.7]} 12... f6
{[%clk 0:01:47.5]} 13. d4 {[%clk 0:01:29]} 13... c4 {[%clk 0:01:47]} 14. f5
{[%clk 0:01:21.3]} 14... Be4 {[%clk 0:01:28.3]} 15. Ng3 {[%clk 0:01:11.4]} 15...
Bxc2 {[%clk 0:01:28.5]} 16. fxg6 {[%clk 0:00:29.3]} 16... hxg6 {[%clk
0:01:23.7]} 17. exf6 {[%clk 0:00:28.8]} 17... Nxf6 {[%clk 0:01:21.5]} 18. Ng5
{[%clk 0:00:22.9]} 18... Qd7 {[%clk 0:01:15.4]} 19. Qc1 {[%clk 0:00:18.2]} 19...
b3 {[%clk 0:01:13.8]} 20. axb3 {[%clk 0:00:18.6]} 20... cxb3 {[%clk 0:01:14.6]}
21. Qb2 {[%clk 0:00:10.5]} 21... a5 {[%clk 0:01:11.4]} 22. d5 {[%clk 0:00:11.7]}
22... a4 {[%clk 0:01:04]} 23. Ne6 {[%clk 0:00:08.9]} 23... a3 {[%clk 0:01:00.7]}
24. Qd4 {[%clk 0:00:04.1]} 24... b2 {[%clk 0:00:52.8]} 25. Ng7+ {[%clk
0:00:04.5]} 25... Kf7 {[%clk 0:00:47.2]} 26. Rxf6+ {[%clk 0:00:05.2]} 26... exf6
{[%clk 0:00:45.3]} 0-1

[Event "*** Biggest EVER Titled Tuesday"]
[Site "Chess.com"]
[Date "2018.04.17"]
[Round "6"]
[White "Iball95"]
[Black "Illingworth"]
[Result "1-0"]
[WhiteElo "2559"]
[BlackElo "2708"]
[TimeControl "180+2"]
[EndTime "14:22:07 PDT"]
[Termination "Iball95 won by resignation"]

1. d4 {[%clk 0:03:01.7]} 1... d5 {[%clk 0:03:00.6]} 2. Bf4 {[%clk 0:03:02]} 2...
c5 {[%clk 0:03:01.3]} 3. e3 {[%clk 0:03:03.1]} 3... Nf6 {[%clk 0:03:02.6]} 4. c3
{[%clk 0:03:04.2]} 4... e6 {[%clk 0:03:03.9]} 5. Nd2 {[%clk 0:03:04.8]} 5... Bd6
{[%clk 0:03:05.2]} 6. Bg3 {[%clk 0:03:04.5]} 6... O-O {[%clk 0:03:05.2]} 7. Bd3
{[%clk 0:03:02.9]} 7... Qc7 {[%clk 0:03:05.4]} 8. f4 {[%clk 0:02:56]} 8... b6
{[%clk 0:02:59.5]} 9. Qe2 {[%clk 0:02:56.5]} 9... Bb7 {[%clk 0:02:58.9]} 10.
Ngf3 {[%clk 0:02:56.9]} 10... Ne4 {[%clk 0:03:00.2]} 11. O-O {[%clk 0:02:53.6]}
11... Nd7 {[%clk 0:02:59.5]} 12. Bh4 {[%clk 0:02:54.4]} 12... f5 {[%clk
0:02:57.1]} 13. Ne5 {[%clk 0:02:48.9]} 13... Bxe5 {[%clk 0:02:48]} 14. fxe5
{[%clk 0:02:50.8]} 14... a5 {[%clk 0:02:40.9]} 15. Bb5 {[%clk 0:02:27.8]} 15...
Nxd2 {[%clk 0:02:37.2]} 16. Qxd2 {[%clk 0:02:29.7]} 16... Ba6 {[%clk 0:02:38.4]}
17. Bxa6 {[%clk 0:02:21.8]} 17... Rxa6 {[%clk 0:02:40.3]} 18. Be7 {[%clk
0:02:23.2]} 18... Rf7 {[%clk 0:02:40.2]} 19. Bd6 {[%clk 0:02:25.1]} 19... Qd8
{[%clk 0:02:36.4]} 20. a4 {[%clk 0:02:25.3]} 20... Ra8 {[%clk 0:02:33.9]} 21.
Rf3 {[%clk 0:02:16.8]} 21... h5 {[%clk 0:02:10.5]} 22. Rh3 {[%clk 0:02:05.1]}
22... Qg5 {[%clk 0:02:10.7]} 23. Qf2 {[%clk 0:02:05]} 23... Kh7 {[%clk
0:02:09.2]} 24. Rf1 {[%clk 0:02:04.2]} 24... Rg8 {[%clk 0:02:07]} 25. Kh1 {[%clk
0:01:56.4]} 25... c4 {[%clk 0:01:59.8]} 26. g4 {[%clk 0:01:05.3]} 26... Qxg4
{[%clk 0:01:55]} 27. Rh4 {[%clk 0:00:57.5]} 27... Qg5 {[%clk 0:01:52.5]} 28. Rg1
{[%clk 0:00:42.1]} 28... Qh6 {[%clk 0:01:53.3]} 29. Qf3 {[%clk 0:00:35.1]} 29...
g6 {[%clk 0:01:54.4]} 30. e4 {[%clk 0:00:34.2]} 30... dxe4 {[%clk 0:01:50.1]}
31. Rxe4 {[%clk 0:00:34.3]} 31... g5 {[%clk 0:01:50.5]} 32. Re2 {[%clk
0:00:34.8]} 32... g4 {[%clk 0:01:51]} 33. Qc6 {[%clk 0:00:35.4]} 33... f4 {[%clk
0:01:49.9]} 34. Qxc4 {[%clk 0:00:36.2]} 34... f3 {[%clk 0:01:51.2]} 35. Rf2
{[%clk 0:00:37]} 35... Rg6 {[%clk 0:01:45.6]} 36. d5 {[%clk 0:00:36.4]} 36...
exd5 {[%clk 0:01:44.2]} 37. Qxd5 {[%clk 0:00:38.3]} 37... Qg5 {[%clk 0:01:40.4]}
38. Qxf7+ {[%clk 0:00:38]} 38... Rg7 {[%clk 0:01:39.9]} 39. Qd5 {[%clk
0:00:36.7]} 39... Qf5 {[%clk 0:01:40.6]} 40. Qd2 {[%clk 0:00:34.9]} 40... h4
{[%clk 0:01:41.2]} 41. Qe3 {[%clk 0:00:28.2]} 41... Nc5 {[%clk 0:01:39.3]} 42.
Bxc5 {[%clk 0:00:27.9]} 42... bxc5 {[%clk 0:01:41.2]} 43. e6 {[%clk 0:00:28.4]}
43... Re7 {[%clk 0:01:42.2]} 44. Re1 {[%clk 0:00:27.8]} 44... g3 {[%clk
0:01:43.5]} 45. Rxf3 {[%clk 0:00:27.2]} 45... Qh3 {[%clk 0:01:43.6]} 46. Qe4+
{[%clk 0:00:27.6]} 46... Kh8 {[%clk 0:01:41.4]} 47. Qe5+ {[%clk 0:00:28.4]}
47... Kh7 {[%clk 0:01:42.8]} 48. Qh5+ {[%clk 0:00:28]} 1-0

[Event "*** Biggest EVER Titled Tuesday"]
[Site "Chess.com"]
[Date "2018.04.17"]
[Round "6"]
[White "Arm-Akiba"]
[Black "Infernal_XaM"]
[Result "1/2-1/2"]
[WhiteElo "2676"]
[BlackElo "2737"]
[TimeControl "180+2"]
[EndTime "14:22:13 PDT"]
[Termination "Game drawn by agreement"]

1. d4 {[%clk 0:03:01.9]} 1... Nf6 {[%clk 0:03:00.5]} 2. Nf3 {[%clk 0:03:02.9]}
2... b6 {[%clk 0:02:57.6]} 3. c4 {[%clk 0:02:59.8]} 3... e6 {[%clk 0:02:58.5]}
4. g3 {[%clk 0:03:00.3]} 4... Bb7 {[%clk 0:02:59.8]} 5. Bg2 {[%clk 0:03:01.2]}
5... Be7 {[%clk 0:03:00.9]} 6. O-O {[%clk 0:03:01.5]} 6... O-O {[%clk 0:03:02]}
7. Nc3 {[%clk 0:03:02.6]} 7... Ne4 {[%clk 0:03:02.3]} 8. Bd2 {[%clk 0:03:00.6]}
8... c5 {[%clk 0:03:02.5]} 9. d5 {[%clk 0:02:55]} 9... exd5 {[%clk 0:03:03.2]}
10. cxd5 {[%clk 0:02:29.4]} 10... Nxd2 {[%clk 0:03:03.3]} 11. Nxd2 {[%clk
0:02:21.4]} 11... d6 {[%clk 0:03:04.6]} 12. Nc4 {[%clk 0:02:22.4]} 12... Nd7
{[%clk 0:03:03.6]} 13. e4 {[%clk 0:02:19]} 13... a6 {[%clk 0:03:03.4]} 14. e5
{[%clk 0:02:14.5]} 14... b5 {[%clk 0:02:56.5]} 15. Nxd6 {[%clk 0:02:08.9]} 15...
Bxd6 {[%clk 0:02:55.9]} 16. exd6 {[%clk 0:02:10.8]} 16... Nf6 {[%clk 0:02:57.2]}
17. a4 {[%clk 0:01:36.1]} 17... b4 {[%clk 0:02:56.5]} 18. Ne4 {[%clk 0:01:37.1]}
18... Nxe4 {[%clk 0:02:57.3]} 19. Bxe4 {[%clk 0:01:39]} 19... Qxd6 {[%clk
0:02:57.7]} 20. Qc2 {[%clk 0:01:39.7]} 20... g6 {[%clk 0:02:57.1]} 21. Rad1
{[%clk 0:01:40]} 21... a5 {[%clk 0:02:56.9]} 22. Rfe1 {[%clk 0:01:35.8]} 22...
Rfe8 {[%clk 0:02:55.5]} 23. Bg2 {[%clk 0:01:33.5]} 23... Ba6 {[%clk 0:02:53.5]}
24. Bf1 {[%clk 0:01:29]} 24... Rxe1 {[%clk 0:02:51.8]} 25. Rxe1 {[%clk 0:01:27]}
25... Bxf1 {[%clk 0:02:53.3]} 26. Rxf1 {[%clk 0:01:27.8]} 26... Qxd5 {[%clk
0:02:54.5]} 27. Rd1 {[%clk 0:01:29.4]} 27... Qc6 {[%clk 0:02:55.3]} 28. b3
{[%clk 0:01:24.8]} 28... Re8 {[%clk 0:02:55.2]} 29. Qc4 {[%clk 0:01:23.7]} 29...
Re4 {[%clk 0:02:45.2]} 30. Qb5 {[%clk 0:01:08.3]} 30... Qxb5 {[%clk 0:01:44.8]}
31. axb5 {[%clk 0:01:08.5]} 31... a4 {[%clk 0:01:46]} 32. bxa4 {[%clk
0:01:00.8]} 32... b3 {[%clk 0:01:47.3]} 33. a5 {[%clk 0:00:42.3]} 33... Rb4
{[%clk 0:01:42]} 34. a6 {[%clk 0:00:35.5]} 34... b2 {[%clk 0:01:23.9]} 35. a7
{[%clk 0:00:32.8]} 35... Ra4 {[%clk 0:01:21.6]} 36. Rb1 {[%clk 0:00:20.4]} 36...
Rxa7 {[%clk 0:01:06.9]} 37. Rxb2 {[%clk 0:00:20.8]} 37... c4 {[%clk 0:01:08.2]}
38. Rc2 {[%clk 0:00:18.7]} 38... Rb7 {[%clk 0:01:08.9]} 39. Rxc4 {[%clk
0:00:19.1]} 39... Rxb5 {[%clk 0:01:09]} 40. h4 {[%clk 0:00:21]} 1/2-1/2

[Event "*** Biggest EVER Titled Tuesday"]
[Site "Chess.com"]
[Date "2018.04.17"]
[Round "6"]
[White "KRASAVCHIK2002"]
[Black "Buffy7"]
[Result "1-0"]
[WhiteElo "2018"]
[BlackElo "2708"]
[TimeControl "180+2"]
[EndTime "14:22:13 PDT"]
[Termination "KRASAVCHIK2002 won by resignation"]

1. e4 {[%clk 0:03:01.9]} 1... e6 {[%clk 0:03:00.5]} 2. d4 {[%clk 0:03:00.6]}
2... d5 {[%clk 0:03:01.6]} 3. Nc3 {[%clk 0:03:00.4]} 3... Bb4 {[%clk 0:03:01.8]}
4. exd5 {[%clk 0:03:01.5]} 4... exd5 {[%clk 0:03:02.2]} 5. Bd3 {[%clk
0:03:00.5]} 5... Nc6 {[%clk 0:03:00.4]} 6. a3 {[%clk 0:03:00.4]} 6... Ba5 {[%clk
0:02:58.9]} 7. Ne2 {[%clk 0:02:54.7]} 7... Nge7 {[%clk 0:02:59.4]} 8. O-O {[%clk
0:02:56.1]} 8... Bg4 {[%clk 0:02:49]} 9. f3 {[%clk 0:02:51.7]} 9... Bf5 {[%clk
0:02:49.6]} 10. Na4 {[%clk 0:02:45.6]} 10... Bb6 {[%clk 0:02:48.3]} 11. Re1
{[%clk 0:02:33.2]} 11... O-O {[%clk 0:02:48.2]} 12. c3 {[%clk 0:02:27.2]} 12...
Qd7 {[%clk 0:02:44.2]} 13. Nxb6 {[%clk 0:02:23.3]} 13... axb6 {[%clk 0:02:44.7]}
14. Nf4 {[%clk 0:02:25.2]} 14... Rfe8 {[%clk 0:02:33.5]} 15. Bxf5 {[%clk
0:02:16.6]} 15... Qxf5 {[%clk 0:02:29.7]} 16. Qd3 {[%clk 0:02:14.1]} 16... Qxd3
{[%clk 0:02:25.3]} 17. Nxd3 {[%clk 0:02:16]} 17... Nd8 {[%clk 0:02:21.4]} 18.
Bf4 {[%clk 0:02:16.2]} 18... Ne6 {[%clk 0:02:22.2]} 19. Bg3 {[%clk 0:02:15.1]}
19... c6 {[%clk 0:02:12.6]} 20. Re2 {[%clk 0:02:11.7]} 20... Ng6 {[%clk
0:01:55.5]} 21. Rae1 {[%clk 0:02:11.8]} 21... Rec8 {[%clk 0:01:52.8]} 22. Ne5
{[%clk 0:02:07.3]} 22... Nxe5 {[%clk 0:01:46]} 23. Bxe5 {[%clk 0:02:09.2]} 23...
Re8 {[%clk 0:01:39.8]} 24. g4 {[%clk 0:01:37.4]} 24... b5 {[%clk 0:01:35.6]} 25.
h4 {[%clk 0:01:31.6]} 25... h6 {[%clk 0:01:09.8]} 26. f4 {[%clk 0:01:27.4]}
26... Nd8 {[%clk 0:00:54.3]} 27. f5 {[%clk 0:01:24.5]} 27... f6 {[%clk
0:00:47.5]} 28. Bf4 {[%clk 0:01:18.7]} 28... Rxe2 {[%clk 0:00:46.9]} 29. Rxe2
{[%clk 0:01:20.6]} 29... Nf7 {[%clk 0:00:39.6]} 30. Re7 {[%clk 0:01:19.6]} 30...
b6 {[%clk 0:00:39.2]} 31. Kf2 {[%clk 0:01:18.7]} 31... c5 {[%clk 0:00:35.3]} 32.
dxc5 {[%clk 0:01:04.7]} 32... bxc5 {[%clk 0:00:37.2]} 33. Rb7 {[%clk 0:01:05.6]}
33... b4 {[%clk 0:00:29.5]} 34. cxb4 {[%clk 0:01:05.6]} 34... c4 {[%clk
0:00:23.3]} 35. b5 {[%clk 0:01:03.4]} 35... Re8 {[%clk 0:00:21.6]} 36. b6 {[%clk
0:01:02.1]} 36... Re4 {[%clk 0:00:20.1]} 37. Rxf7 {[%clk 0:01:01.6]} 37... Kxf7
{[%clk 0:00:19.9]} 38. b7 {[%clk 0:01:02.3]} 38... Rxf4+ {[%clk 0:00:21.3]} 39.
Kg3 {[%clk 0:01:03.2]} 1-0

[Event "*** Biggest EVER Titled Tuesday"]
[Site "Chess.com"]
[Date "2018.04.17"]
[Round "6"]
[White "Blitzking4444"]
[Black "SelfishShellfish"]
[Result "1-0"]
[WhiteElo "1984"]
[BlackElo "2173"]
[TimeControl "180+2"]
[EndTime "14:22:16 PDT"]
[Termination "Blitzking4444 won on time"]

1. e4 {[%clk 0:03:01.9]} 1... Nc6 {[%clk 0:03:01.1]} 2. Nf3 {[%clk 0:03:02.4]}
2... d6 {[%clk 0:03:03]} 3. d4 {[%clk 0:03:02.9]} 3... Nf6 {[%clk 0:03:04.1]} 4.
Nc3 {[%clk 0:03:03.4]} 4... g6 {[%clk 0:03:05.2]} 5. d5 {[%clk 0:02:52.9]} 5...
Nb8 {[%clk 0:03:05.9]} 6. Bb5+ {[%clk 0:02:44.3]} 6... c6 {[%clk 0:03:05.9]} 7.
dxc6 {[%clk 0:02:45.5]} 7... bxc6 {[%clk 0:03:02.8]} 8. Ba4 {[%clk 0:02:46.1]}
8... e5 {[%clk 0:02:44.7]} 9. Bg5 {[%clk 0:02:29.2]} 9... Bg7 {[%clk 0:02:44]}
10. Qd2 {[%clk 0:02:18.5]} 10... O-O {[%clk 0:02:37.4]} 11. O-O-O {[%clk
0:02:07.9]} 11... Qa5 {[%clk 0:02:04.2]} 12. Bxf6 {[%clk 0:02:05.4]} 12... Bxf6
{[%clk 0:02:06.1]} 13. Qxd6 {[%clk 0:02:06.2]} 13... Bg7 {[%clk 0:02:06.6]} 14.
h4 {[%clk 0:00:49.4]} 14... Bg4 {[%clk 0:01:59.1]} 15. h5 {[%clk 0:00:49.3]}
15... Bxh5 {[%clk 0:01:53.2]} 16. Rh4 {[%clk 0:00:43.3]} 16... Na6 {[%clk
0:01:42.2]} 17. g4 {[%clk 0:00:41.8]} 17... Nc5 {[%clk 0:01:32]} 18. Bxc6 {[%clk
0:00:23.3]} 18... Rad8 {[%clk 0:00:49.4]} 19. Qe7 {[%clk 0:00:24.5]} 19... Bh6+
{[%clk 0:00:27.3]} 20. Kb1 {[%clk 0:00:20.8]} 20... Rxd1+ {[%clk 0:00:26.4]} 21.
Nxd1 {[%clk 0:00:21.6]} 21... Rd8 {[%clk 0:00:07.6]} 22. Bd5 {[%clk 0:00:22.7]}
22... Rxd5 {[%clk 0:00:04]} 23. exd5 {[%clk 0:00:23.9]} 23... Na4 {[%clk
0:00:04.4]} 24. d6 {[%clk 0:00:19.8]} 24... Qd5 {[%clk 0:00:05.2]} 25. Qe8+
{[%clk 0:00:15.7]} 25... Kg7 {[%clk 0:00:06.2]} 26. Qxe5+ {[%clk 0:00:16.7]}
26... Qxe5 {[%clk 0:00:05.2]} 27. Nxe5 {[%clk 0:00:18.6]} 1-0